[Event "EYCC Open-U18 2019"]
[Site "Bratislava"]
[Date "2019.08.02"]
[Round "1.39"]
[White "Iliaguev, Nisim"]
[Black "Cordeiro, Joao Carlos Santos F"]
[Result "1-0"]
[ECO "A14"]
[WhiteElo "2357"]
[BlackElo "1924"]
[Annotator "NA"]
[PlyCount "59"]
[EventDate "2019.08.02"]
[EventType "swiss"]
[EventCountry "SVK"]
[SourceTitle "playchess.com"]
[Source "ChessBase"]
[SourceQuality "1"]
[TimeControl "40/5400+30:1800+30"]

1. c4 {[%emt 0:00:00]} Nf6 {[%emt 0:00:26]} 2. g3 {[%emt 0:00:00]} e6 {[%emt 0:00:42]} 3. Bg2 {[%emt 0:00:00]} d5 {[%emt 0:01:01]} 4. Nf3 {[%emt 0:01:07]} Be7 {[%emt 0:05:22]} 5. O-O {[%emt 0:00:36]} O-O {[%emt 0:00:33]} 6. d4 {[%emt 0:03:26]} dxc4 {[%emt 0:11:42]} 7. Ne5 {[%emt 0:05:36]} c5 {[%emt 0:08:55]} 8. dxc5 {[%emt 0:02:28]} Qc7 {[%emt 0:09:10]} 9. Nxc4 {[%emt 0:09:51]} Bxc5 {[%emt 0:03:32]} 10. Nba3 {[%emt 0:15:57]} Bxa3 {[%emt 0:13:47]} 11. Nxa3 {[%emt 0:00:11]} Bd7 {[%emt 0:00:53]} 12. Bf4 {[%emt 0:09:38]} e5 {[%emt 0:02:26]} 13. Rc1 {[%emt 0:04:28]} Bc6 {[%emt 0:01:40]} 14. Bg5 {[%emt 0:00:35]} Qe7 {[%emt 0:01:46]} 15. e4 {[%emt 0:02:28]} h6 {[%emt 0:02:51]} 16. Be3 {[%emt 0:02:37]} Na6 {[%emt 0:03:35]} 17. f3 {[%emt 0:03:55]} Rfd8 {[%emt 0:04:05]} 18. Qe2 {[%emt 0:00:57]} Nc7 {[%emt 0:03:41]} 19. Qf2 {[%emt 0:09:18]} Nb5 {[%emt 0:06:14]} 20. Nc4 {[%emt 0:00:50]} Qe6 {[%emt 0:06:07]} 21. b3 {[%emt 0:00:35]} Be8 {[%emt 0:06:36]} 22. Rfd1 {[%emt 0:02:20]} b6 {[%emt 0:00:29]} 23. Qb2 {[%emt 0:00:37]} Nd7 {[%emt 0:02:26]} 24. a4 {[%emt 0:09:16]} Nc7 {[%emt 0:00:22]} 25. Nd6 {[%emt 0:04:11]} Nc5 {[%emt 0:01:34]} 26. Bxc5 {[%emt 0:02:48]} bxc5 {[%emt 0:00:11]} 27. Nf5 {[%emt 0:01:55]} Na6 {[%emt 0:01:10]} 28. Bf1 {[%emt 0:00:50]} Rxd1 {[%emt 0:01:16]} 29. Rxd1 {[%emt 0:00:01]} g6 {[%emt 0:00:52]} 30. Rd6 {[%emt 0:00:42]} 1-0

[Event "EYCC Open-U18 2019"]
[Site "Bratislava"]
[Date "2019.08.02"]
[Round "1.40"]
[White "Ihnat, Marek"]
[Black "Oboladze, Luka"]
[Result "0-1"]
[ECO "B43"]
[WhiteElo "1946"]
[BlackElo "2323"]
[Annotator "NA"]
[PlyCount "78"]
[EventDate "2019.08.02"]
[EventType "swiss"]
[EventCountry "SVK"]
[SourceTitle "playchess.com"]
[Source "ChessBase"]
[SourceQuality "1"]
[TimeControl "40/5400+30:1800+30"]

1. e4 {[%emt 0:00:00]} c5 {[%emt 0:00:00]} 2. Nc3 {[%emt 0:00:00]} e6 {[%emt 0:00:04]} 3. Nf3 {[%emt 0:00:00]} a6 {[%emt 0:00:14]} 4. d4 {[%emt 0:00:00]} cxd4 {[%emt 0:00:03]} 5. Nxd4 {[%emt 0:00:04]} Qc7 {[%emt 0:00:04]} 6. Bd3 {[%emt 0:00:22]} Nf6 {[%emt 0:00:13]} 7. O-O {[%emt 0:01:04]} Nc6 {[%emt 0:00:08]} 8. Nxc6 {[%emt 0:01:07]} dxc6 {[%emt 0:01:43]} 9. Kh1 {[%emt 0:06:15]} e5 {[%emt 0:14:22]} 10. Be3 {[%emt 0:12:32]} Ng4 {[%emt 0:05:02]} 11. Bg5 {[%emt 0:17:30]} h6 {[%emt 0:17:40]} 12. Bh4 {[%emt 0:05:23]} g5 {[%emt 0:03:44]} 13. Bg3 {[%emt 0:01:28]} h5 {[%emt 0:00:57]} 14. Be2 {[%emt 0:02:06]} Bc5 {[%emt 0:10:46]} 15. Bxg4 {[%emt 0:06:58]} Bxg4 {[%emt 0:00:28]} 16. f3 {[%emt 0:00:44]} Be6 {[%emt 0:00:31]} 17. Qd2 {[%emt 0:02:42]} Be7 {[%emt 0:05:47]} 18. Bf2 {[%emt 0:03:24]} Rd8 {[%emt 0:03:27]} 19. Qe2 {[%emt 0:05:16]} b5 {[%emt 0:04:03]} 20. Rfd1 {[%emt 0:02:23]} O-O {[%emt 0:00:59]} 21. Be3 {[%emt 0:01:32]} Rxd1+ {[%emt 0:00:37]} 22. Rxd1 {[%emt 0:00:11]} Rd8 {[%emt 0:00:14]} 23. Rxd8+ {[%emt 0:07:42]} Qxd8 {[%emt 0:00:14]} 24. a3 {[%emt 0:02:38]} a5 {[%emt 0:08:51]} 25. Kg1 {[%emt 0:02:53]} Bc4 {[%emt 0:04:07]} 26. Qe1 {[%emt 0:02:12]} Qd6 {[%emt 0:04:14]} 27. b3 {[%emt 0:03:19]} Be6 {[%emt 0:00:18]} 28. a4 {[%emt 0:02:05]} b4 {[%emt 0:06:35]} 29. Nd1 {[%emt 0:01:11]} g4 {[%emt 0:02:19]} 30. Nf2 {[%emt 0:04:58]} gxf3 {[%emt 0:00:33]} 31. gxf3 {[%emt 0:00:09]} h4 {[%emt 0:01:04]} 32. Nd3 {[%emt 0:02:16]} Bxb3 {[%emt 0:01:30]} 33. Bc5 {[%emt 0:05:14]} Qg6+ {[%emt 0:00:10]} 34. Kf2 {[%emt 0:00:38]} Bxc2 {[%emt 0:03:55]} 35. Bxe7 {[%emt 0:00:07]} Bxd3 {[%emt 0:00:03]} 36. Bxh4 {[%emt 0:00:49]} Qd6 {[%emt 0:00:33]} 37. Qe3 {[%emt 0:00:45]} Qd4 {[%emt 0:00:47]} 38. Bf6 {[%emt 0:00:31]} c5 {[%emt 0:00:19]} 39. Be7 {[%emt 0:00:29]} b3 {[%emt 0:00:16]} 0-1

[Event "EYCC Open-U18 2019"]
[Site "Bratislava"]
[Date "2019.08.03"]
[Round "2.1"]
[White "Guerra Rivera, Salvador"]
[Black "Hakobyan, Aram"]
[Result "0-1"]
[ECO "B24"]
[WhiteElo "2355"]
[BlackElo "2568"]
[Annotator "ChessBase"]
[PlyCount "80"]
[EventDate "2019.08.02"]
[EventType "swiss"]
[EventCountry "SVK"]
[SourceTitle "playchess.com"]
[Source "ChessBase"]
[SourceQuality "1"]
[TimeControl "40/5400+30:1800+30"]

1. e4 {[%emt 0:00:00]} c5 {[%emt 0:00:00]} 2. Nc3 {[%emt 0:00:25]} Nc6 {[%emt 0:01:14]} 3. Bb5 {[%emt 0:00:48]} Nd4 {[%emt 0:01:41]} 4. Nf3 {[%emt 0:00:45]} Nxb5 {[%emt 0:00:07]} 5. Nxb5 {[%emt 0:00:05]} d6 {[%emt 0:00:38]} 6. d4 {[%emt 0:01:13]} a6 {[%emt 0:00:32]} 7. Nc3 {[%emt 0:00:13]} cxd4 {[%emt 0:00:09]} 8. Qxd4 {[%emt 0:00:11]} e6 {[%emt 0:03:34]} 9. O-O {[%emt 0:11:41]} Ne7 {[%emt 0:00:46]} 10. Be3 {[%emt 0:01:41]} Nc6 {[%emt 0:01:24]} 11. Qd2 {[%emt 0:05:27]} Be7 {[%emt 0:00:20]} 12. Nd4 {[%emt 0:08:03]} Ne5 {[%emt 0:04:23]} 13. Qe2 {[%emt 0:00:52]} Qc7 {[%emt 0:00:28]} 14. Rad1 {[%emt 0:05:01]} b5 {[%emt 0:02:55]} 15. f4 {[%emt 0:05:26]} Nc4 {[%emt 0:03:36]} 16. f5 {[%emt 0:00:22]} b4 {[%emt 0:11:08]} 17. fxe6 {[%emt 0:13:56]} fxe6 {[%emt 0:07:00]} 18. Na4 {[%emt 0:06:21]} Bd7 {[%emt 0:03:42]} 19. b3 {[%emt 0:00:50]} Nxe3 {[%emt 0:02:17]} 20. Qxe3 {[%emt 0:00:09]} Bf6 {[%emt 0:00:21]} 21. Nb2 {[%emt 0:09:33]} O-O {[%emt 0:01:44]} 22. Nc4 {[%emt 0:01:20]} Rae8 {[%emt 0:13:59]} 23. Qg3 {[%emt 0:11:18]} Be7 {[%emt 0:06:51]} 24. Kh1 {[%emt 0:04:10]} Qc5 {[%emt 0:03:36]} 25. Qd3 {[%emt 0:00:39]} Rxf1+ {[%emt 0:03:04]} 26. Rxf1 {[%emt 0:01:12]} Bf6 {[%emt 0:00:39]} 27. Nf3 {[%emt 0:00:39]} d5 {[%emt 0:01:33]} 28. Re1 {[%emt 0:04:44]} Bc3 {[%emt 0:03:01]} 29. Re2 {[%emt 0:00:52]} Rf8 {[%emt 0:02:00]} 30. a4 {[%emt 0:02:00]} bxa3 {[%emt 0:01:43]} 31. Qxc3 {[%emt 0:00:12]} dxc4 {[%emt 0:03:12]} 32. b4 {[%emt 0:00:04]} Qd6 {[%emt 0:02:06]} 33. Rd2 {[%emt 0:00:19]} Qc6 {[%emt 0:02:27]} 34. Qxa3 {[%emt 0:05:15]} Qxe4 {[%emt 0:00:43]} 35. Qc1 {[%emt 0:00:20]} Rxf3 {[%emt 0:04:26]} 36. gxf3 {[%emt 0:01:05]} Qxf3+ {[%emt 0:00:02]} 37. Kg1 {[%emt 0:00:04]} Qe3+ {[%emt 0:00:10]} 38. Kf1 {[%emt 0:00:06]} e5 {[%emt 0:01:42]} 39. Qd1 {[%emt 0:00:26]} Bh3+ {[%emt 0:00:16]} 40. Rg2 {[%emt 0:00:00]} h6 {[%emt 0:00:00]} 0-1

[Event "EYCC Open-U18 2019"]
[Site "Bratislava"]
[Date "2019.08.03"]
[Round "2.2"]
[White "Van Foreest, Lucas"]
[Black "Garayev, Kanan"]
[Result "1/2-1/2"]
[ECO "C42"]
[WhiteElo "2521"]
[BlackElo "2351"]
[Annotator "ChessBase"]
[PlyCount "117"]
[EventDate "2019.08.02"]
[EventType "swiss"]
[EventCountry "SVK"]
[SourceTitle "playchess.com"]
[Source "ChessBase"]
[SourceQuality "1"]
[TimeControl "40/5400+30:1800+30"]

1. e4 {[%emt 0:00:00]} e5 {[%emt 0:00:00]} 2. Nf3 {[%emt 0:00:00]} Nf6 {[%emt 0:00:00]} 3. Nxe5 {[%emt 0:00:00]} d6 {[%emt 0:00:00]} 4. Nf3 {[%emt 0:00:04]} Nxe4 {[%emt 0:00:00]} 5. Bd3 {[%emt 0:00:16]} Nf6 {[%emt 0:07:00]} 6. O-O {[%emt 0:00:05]} Be7 {[%emt 0:00:08]} 7. Re1 {[%emt 0:00:02]} O-O {[%emt 0:00:55]} 8. Bf1 {[%emt 0:00:03]} Re8 {[%emt 0:11:31]} 9. d4 {[%emt 0:00:37]} Bg4 {[%emt 0:12:03]} 10. c4 {[%emt 0:03:26]} Nc6 {[%emt 0:02:52]} 11. Be3 {[%emt 0:21:19]} d5 {[%emt 0:07:15]} 12. Nc3 {[%emt 0:01:01]} dxc4 {[%emt 0:04:46]} 13. Bxc4 {[%emt 0:00:10]} Bh5 {[%emt 0:01:30]} 14. Bb3 {[%emt 0:09:31]} Bxf3 {[%emt 0:05:54]} 15. Qxf3 {[%emt 0:05:54]} Nxd4 {[%emt 0:01:00]} 16. Bxd4 {[%emt 0:00:32]} Qxd4 {[%emt 0:00:05]} 17. Rad1 {[%emt 0:06:04]} Qb6 {[%emt 0:12:54]} 18. Nd5 {[%emt 0:04:01]} Nxd5 {[%emt 0:00:12]} 19. Bxd5 {[%emt 0:00:11]} Bf6 {[%emt 0:02:37]} 20. Bxb7 {[%emt 0:02:37]} Rxe1+ {[%emt 0:02:32]} 21. Rxe1 {[%emt 0:00:05]} Rd8 {[%emt 0:01:33]} 22. b3 {[%emt 0:05:12]} Qb4 {[%emt 0:01:05]} 23. Rf1 {[%emt 0:02:58]} Qc3 {[%emt 0:01:27]} 24. Qe2 {[%emt 0:04:19]} Qd2 {[%emt 0:04:24]} 25. Qc4 {[%emt 0:00:46]} Qc3 {[%emt 0:00:52]} 26. Qe2 {[%emt 0:03:23]} Qd2 {[%emt 0:00:12]} 27. Qa6 {[%emt 0:01:14]} Bd4 {[%emt 0:00:41]} 28. Bd5 {[%emt 0:00:51]} Bb6 {[%emt 0:02:34]} 29. Bc4 {[%emt 0:01:35]} g6 {[%emt 0:02:53]} 30. Qb7 {[%emt 0:01:12]} Kg7 {[%emt 0:02:29]} 31. Qf3 {[%emt 0:00:21]} Rd7 {[%emt 0:00:16]} 32. a4 {[%emt 0:00:59]} Qd4 {[%emt 0:01:03]} 33. g3 {[%emt 0:01:52]} Qf6 {[%emt 0:00:31]} 34. Qxf6+ {[%emt 0:01:29]} Kxf6 {[%emt 0:00:40]} 35. Re1 {[%emt 0:00:05]} Rd2 {[%emt 0:00:16]} 36. Re2 {[%emt 0:00:06]} Rxe2 {[%emt 0:00:27]} 37. Bxe2 {[%emt 0:00:06]} a5 {[%emt 0:02:35]} 38. Kg2 {[%emt 0:00:07]} Bc5 {[%emt 0:01:30]} 39. Bc4 {[%emt 0:00:04]} g5 {[%emt 0:00:43]} 40. f3 {[%emt 0:00:00]} h5 {[%emt 0:00:00]} 41. f4 {[%emt 0:01:34]} gxf4 {[%emt 0:04:59]} 42. gxf4 {[%emt 0:00:14]} Be3 {[%emt 0:00:33]} 43. Kf3 {[%emt 0:00:09]} Bg1 {[%emt 0:00:36]} 44. h3 {[%emt 0:02:24]} Bc5 {[%emt 0:01:28]} 45. Ke4 {[%emt 0:00:10]} h4 {[%emt 0:00:20]} 46. Kf3 {[%emt 0:00:09]} Bb4 {[%emt 0:00:11]} 47. Kg4 {[%emt 0:00:26]} Be1 {[%emt 0:00:11]} 48. Bd5 {[%emt 0:00:19]} c5 {[%emt 0:00:29]} 49. Bc4 {[%emt 0:00:07]} Bf2 {[%emt 0:00:29]} 50. Kf3 {[%emt 0:00:03]} Be1 {[%emt 0:00:08]} 51. Ke4 {[%emt 0:00:03]} Bd2 {[%emt 0:00:34]} 52. Bd3 {[%emt 0:00:04]} Ke6 {[%emt 0:00:31]} 53. Bc4+ {[%emt 0:00:43]} Kf6 {[%emt 0:00:02]} 54. Be2 {[%emt 0:00:07]} Ke6 {[%emt 0:00:55]} 55. Bg4+ {[%emt 0:00:09]} Kf6 {[%emt 0:00:13]} 56. Be2 {[%emt 0:00:21]} Ke6 {[%emt 0:00:08]} 57. Bg4+ {[%emt 0:00:09]} Kf6 {[%emt 0:00:04]} 58. Be2 {[%emt 0:00:04]} Ke6 {[%emt 0:00:07]} 59. Bg4+ {[%emt 0:00:04] Ke5+} 1/2-1/2

[Event "EYCC Open-U18 2019"]
[Site "Bratislava"]
[Date "2019.08.03"]
[Round "2.3"]
[White "Ciorgovean, Iustin"]
[Black "Nguyen, Thai Dai Van"]
[Result "1/2-1/2"]
[ECO "E32"]
[WhiteElo "2330"]
[BlackElo "2535"]
[Annotator "ChessBase"]
[PlyCount "53"]
[EventDate "2019.08.02"]
[EventType "swiss"]
[EventCountry "SVK"]
[SourceTitle "playchess.com"]
[Source "ChessBase"]
[SourceQuality "1"]
[TimeControl "40/5400+30:1800+30"]

1. d4 {[%emt 0:00:00]} Nf6 {[%emt 0:00:00]} 2. c4 {[%emt 0:00:00]} e6 {[%emt 0:00:00]} 3. Nc3 {[%emt 0:00:00]} Bb4 {[%emt 0:00:04]} 4. Qc2 {[%emt 0:00:00]} O-O {[%emt 0:01:05]} 5. a3 {[%emt 0:00:00]} Bxc3+ {[%emt 0:00:07]} 6. Qxc3 {[%emt 0:00:02]} b6 {[%emt 0:00:59]} 7. Bg5 {[%emt 0:00:09]} Bb7 {[%emt 0:00:06]} 8. e3 {[%emt 0:00:07]} h6 {[%emt 0:05:32]} 9. Bh4 {[%emt 0:01:24]} d6 {[%emt 0:00:07]} 10. Ne2 {[%emt 0:00:35]} Nbd7 {[%emt 0:03:34]} 11. Qc2 {[%emt 0:00:28]} c5 {[%emt 0:06:14]} 12. Rd1 {[%emt 0:00:32]} Qe7 {[%emt 0:03:08]} 13. Nc3 {[%emt 0:00:59]} cxd4 {[%emt 0:09:55]} 14. Rxd4 {[%emt 0:00:13]} Rfd8 {[%emt 0:00:34]} 15. f3 {[%emt 0:03:00]} d5 {[%emt 0:13:40]} 16. cxd5 {[%emt 0:06:16]} exd5 {[%emt 0:00:07]} 17. Bf2 {[%emt 0:00:39]} Nc5 {[%emt 0:02:53]} 18. Be2 {[%emt 0:01:04]} Ne6 {[%emt 0:00:58]} 19. Rd1 {[%emt 0:06:03]} d4 {[%emt 0:06:21]} 20. exd4 {[%emt 0:00:15]} Nf4 {[%emt 0:00:29]} 21. O-O {[%emt 0:01:06]} N6d5 {[%emt 0:02:53]} 22. Rfe1 {[%emt 0:32:24]} Ne3 {[%emt 0:18:20]} 23. Bxe3 {[%emt 0:01:02]} Qxe3+ {[%emt 0:00:02]} 24. Kf1 {[%emt 0:09:52]} Qe7 {[%emt 0:02:19]} 25. Bd3 {[%emt 0:10:10]} Qh4 {[%emt 0:03:42]} 26. Kg1 {[%emt 0:09:27]} Rxd4 {[%emt 0:04:14]} 27. Be4 {[%emt 0:04:40]} 1/2-1/2

[Event "EYCC Open-U18 2019"]
[Site "Bratislava"]
[Date "2019.08.03"]
[Round "2.4"]
[White "Bjerre, Jonas Buhl"]
[Black "Leisch, Lukas"]
[Result "1-0"]
[ECO "E06"]
[WhiteElo "2503"]
[BlackElo "2327"]
[Annotator "ChessBase"]
[PlyCount "51"]
[EventDate "2019.08.02"]
[EventType "swiss"]
[EventCountry "SVK"]
[SourceTitle "playchess.com"]
[Source "ChessBase"]
[SourceQuality "1"]
[TimeControl "40/5400+30:1800+30"]

1. d4 {[%emt 0:00:00]} e6 {[%emt 0:00:00]} 2. c4 {[%emt 0:01:26]} Nf6 {[%emt 0:01:04]} 3. Nf3 {[%emt 0:00:25]} d5 {[%emt 0:00:35]} 4. g3 {[%emt 0:00:52]} Be7 {[%emt 0:00:27]} 5. Bg2 {[%emt 0:00:28]} O-O {[%emt 0:00:08]} 6. O-O {[%emt 0:00:40]} dxc4 {[%emt 0:00:48]} 7. Ne5 {[%emt 0:02:04]} Nc6 {[%emt 0:00:50]} 8. Nxc6 {[%emt 0:00:12]} bxc6 {[%emt 0:00:07]} 9. Na3 {[%emt 0:00:24]} Bxa3 {[%emt 0:00:28]} 10. bxa3 {[%emt 0:00:03]} Ba6 {[%emt 0:00:38]} 11. Bxc6 {[%emt 0:00:35]} Rb8 {[%emt 0:00:44]} 12. Re1 {[%emt 0:00:53]} Bb7 {[%emt 0:24:08]} 13. Bxb7 {[%emt 0:01:28]} Rxb7 {[%emt 0:00:24]} 14. Bg5 {[%emt 0:02:47]} c5 {[%emt 0:17:39]} 15. dxc5 {[%emt 0:02:06]} Qa5 {[%emt 0:04:50]} 16. Qd4 {[%emt 0:17:35]} Rc7 {[%emt 0:03:11]} 17. Bd2 {[%emt 0:05:54]} Qxa3 {[%emt 0:02:28]} 18. Qxc4 {[%emt 0:02:14]} Rfc8 {[%emt 0:03:57]} 19. Be3 {[%emt 0:13:45]} Nd7 {[%emt 0:04:09]} 20. Rac1 {[%emt 0:08:40]} Nxc5 {[%emt 0:04:01]} 21. Red1 {[%emt 0:06:28]} Na6 {[%emt 0:05:08]} 22. Qb5 {[%emt 0:03:18]} h6 {[%emt 0:03:51]} 23. Rxc7 {[%emt 0:02:11]} Rxc7 {[%emt 0:04:46]} 24. Rd3 {[%emt 0:01:49]} Qxa2 {[%emt 0:01:10]} 25. Rd6 {[%emt 0:00:50]} Nc5 {[%emt 0:08:32]} 26. Bxc5 {[%emt 0:12:08]} 1-0

[Event "EYCC Open-U18 2019"]
[Site "Bratislava"]
[Date "2019.08.03"]
[Round "2.5"]
[White "Oboladze, Luka"]
[Black "Engel, Luis"]
[Result "1/2-1/2"]
[ECO "D38"]
[WhiteElo "2323"]
[BlackElo "2509"]
[Annotator "ChessBase"]
[PlyCount "86"]
[EventDate "2019.08.02"]
[EventType "swiss"]
[EventCountry "SVK"]
[SourceTitle "playchess.com"]
[Source "ChessBase"]
[SourceQuality "1"]
[TimeControl "40/5400+30:1800+30"]

1. d4 {[%emt 0:00:00]} Nf6 {[%emt 0:00:00]} 2. c4 {[%emt 0:00:00]} e6 {[%emt 0:00:00]} 3. Nf3 {[%emt 0:00:00]} d5 {[%emt 0:00:00]} 4. Nc3 {[%emt 0:00:00]} Bb4 {[%emt 0:00:00]} 5. Bg5 {[%emt 0:00:10]} h6 {[%emt 0:00:00]} 6. Bxf6 {[%emt 0:00:23]} Qxf6 {[%emt 0:00:01]} 7. Qa4+ {[%emt 0:00:05]} Nc6 {[%emt 0:00:08]} 8. e3 {[%emt 0:00:04]} O-O {[%emt 0:00:06]} 9. Be2 {[%emt 0:00:50]} dxc4 {[%emt 0:00:32]} 10. Bxc4 {[%emt 0:00:12]} e5 {[%emt 0:00:44]} 11. O-O {[%emt 0:03:03]} exd4 {[%emt 0:00:36]} 12. Nd5 {[%emt 0:01:17]} Qd6 {[%emt 0:00:12]} 13. Nxb4 {[%emt 0:07:46]} Nxb4 {[%emt 0:06:02]} 14. Rad1 {[%emt 0:09:18]} c5 {[%emt 0:11:57]} 15. exd4 {[%emt 0:01:51]} Bg4 {[%emt 0:06:29]} 16. dxc5 {[%emt 0:06:06]} Qxc5 {[%emt 0:00:08]} 17. Rc1 {[%emt 0:01:09]} Qd6 {[%emt 0:03:11]} 18. Qb3 {[%emt 0:26:24]} Nc6 {[%emt 0:08:23]} 19. Bd5 {[%emt 0:07:31]} Rad8 {[%emt 0:06:14]} 20. Bxc6 {[%emt 0:04:49]} bxc6 {[%emt 0:00:07]} 21. Qc3 {[%emt 0:02:59]} Rfe8 {[%emt 0:07:32]} 22. h3 {[%emt 0:03:52]} Be6 {[%emt 0:04:29]} 23. b3 {[%emt 0:03:18]} Bd5 {[%emt 0:01:32]} 24. Nd4 {[%emt 0:03:12]} Qg6 {[%emt 0:07:24]} 25. f3 {[%emt 0:00:14]} Qg5 {[%emt 0:09:41]} 26. Rfe1 {[%emt 0:00:47]} h5 {[%emt 0:06:05]} 27. Rxe8+ {[%emt 0:04:18]} Rxe8 {[%emt 0:00:06]} 28. Re1 {[%emt 0:00:02]} Rxe1+ {[%emt 0:01:42]} 29. Qxe1 {[%emt 0:00:05]} c5 {[%emt 0:00:48]} 30. h4 {[%emt 0:01:34]} Qg6 {[%emt 0:01:48]} 31. Qe5 {[%emt 0:03:19]} cxd4 {[%emt 0:00:33]} 32. Qxd5 {[%emt 0:00:04]} Qb6 {[%emt 0:02:53]} 33. Kf1 {[%emt 0:02:08]} g6 {[%emt 0:01:07]} 34. Qa8+ {[%emt 0:05:17]} Kg7 {[%emt 0:00:22]} 35. Qd5 {[%emt 0:00:09]} Qa6+ {[%emt 0:01:35]} 36. Ke1 {[%emt 0:01:16]} Qd3 {[%emt 0:01:24]} 37. Qe5+ {[%emt 0:00:24]} Kh7 {[%emt 0:00:35]} 38. Qe2 {[%emt 0:00:31]} Qb1+ {[%emt 0:01:49]} 39. Kf2 {[%emt 0:00:23]} Qc1 {[%emt 0:01:23]} 40. Qe7 {[%emt 0:00:00]} Qd2+ {[%emt 0:00:00]} 41. Kg3 {[%emt 0:02:58]} Kg7 {[%emt 0:05:56]} 42. Qe5+ {[%emt 0:00:56]} Kg8 {[%emt 0:00:08]} 43. Qe8+ {[%emt 0:00:16]} Kg7 {[%emt 0:00:05]} 1/2-1/2

[Event "EYCC Open-U18 2019"]
[Site "Bratislava"]
[Date "2019.08.03"]
[Round "2.6"]
[White "Stevanic, David"]
[Black "Gumularz, Szymon"]
[Result "1/2-1/2"]
[ECO "B22"]
[WhiteElo "2306"]
[BlackElo "2502"]
[Annotator "ChessBase"]
[PlyCount "40"]
[EventDate "2019.08.02"]
[EventType "swiss"]
[EventCountry "SVK"]
[SourceTitle "playchess.com"]
[Source "ChessBase"]
[SourceQuality "1"]
[TimeControl "40/5400+30:1800+30"]

1. e4 {[%emt 0:00:00]} c5 {[%emt 0:00:00]} 2. c3 {[%emt 0:00:00]} Nf6 {[%emt 0:00:26]} 3. e5 {[%emt 0:00:00]} Nd5 {[%emt 0:00:04]} 4. d4 {[%emt 0:01:18]} cxd4 {[%emt 0:00:10]} 5. Nf3 {[%emt 0:00:07]} Nc6 {[%emt 0:00:09]} 6. cxd4 {[%emt 0:00:08]} d6 {[%emt 0:00:53]} 7. Bc4 {[%emt 0:00:28]} dxe5 {[%emt 0:00:33]} 8. Nxe5 {[%emt 0:09:56]} e6 {[%emt 0:00:40]} 9. Nxc6 {[%emt 0:00:30]} bxc6 {[%emt 0:00:04]} 10. O-O {[%emt 0:00:31]} Be7 {[%emt 0:00:23]} 11. Nc3 {[%emt 0:00:38]} O-O {[%emt 0:00:24]} 12. Be3 {[%emt 0:16:35]} a5 {[%emt 0:01:30]} 13. Rc1 {[%emt 0:02:31]} Ba6 {[%emt 0:03:40]} 14. b3 {[%emt 0:05:35]} Bxc4 {[%emt 0:13:05]} 15. bxc4 {[%emt 0:00:41]} Nxc3 {[%emt 0:00:12]} 16. Rxc3 {[%emt 0:00:08]} Bf6 {[%emt 0:00:05]} 17. Rd3 {[%emt 0:04:38]} a4 {[%emt 0:02:26]} 18. d5 {[%emt 0:04:32]} cxd5 {[%emt 0:01:37]} 19. cxd5 {[%emt 0:00:08]} exd5 {[%emt 0:00:38]} 20. Rxd5 {[%emt 0:00:06]} Qc8 {[%emt 0:00:10]} 1/2-1/2

[Event "EYCC Open-U18 2019"]
[Site "Bratislava"]
[Date "2019.08.03"]
[Round "2.7"]
[White "Vrolijk, Liam"]
[Black "Iliaguev, Nisim"]
[Result "1-0"]
[ECO "E20"]
[WhiteElo "2478"]
[BlackElo "2357"]
[Annotator "ChessBase"]
[PlyCount "95"]
[EventDate "2019.08.02"]
[EventType "swiss"]
[EventCountry "SVK"]
[SourceTitle "playchess.com"]
[Source "ChessBase"]
[SourceQuality "1"]
[TimeControl "40/5400+30:1800+30"]

1. d4 {[%emt 0:00:00]} Nf6 {[%emt 0:00:00]} 2. c4 {[%emt 0:00:00]} e6 {[%emt 0:00:00]} 3. Nc3 {[%emt 0:00:00]} Bb4 {[%emt 0:00:00]} 4. f3 {[%emt 0:00:19]} d5 {[%emt 0:06:26]} 5. a3 {[%emt 0:00:18]} Bxc3+ {[%emt 0:02:30]} 6. bxc3 {[%emt 0:00:09]} O-O {[%emt 0:00:08]} 7. cxd5 {[%emt 0:04:35]} exd5 {[%emt 0:02:07]} 8. e3 {[%emt 0:00:32]} b6 {[%emt 0:02:37]} 9. Bd3 {[%emt 0:02:08]} Ba6 {[%emt 0:01:52]} 10. Ne2 {[%emt 0:00:12]} Bxd3 {[%emt 0:01:00]} 11. Qxd3 {[%emt 0:00:08]} Nbd7 {[%emt 0:00:19]} 12. O-O {[%emt 0:03:07]} c5 {[%emt 0:06:37]} 13. Ng3 {[%emt 0:04:48]} Re8 {[%emt 0:07:37]} 14. Bb2 {[%emt 0:07:48]} Rc8 {[%emt 0:04:37]} 15. Rfe1 {[%emt 0:07:02]} Re6 {[%emt 0:06:18]} 16. Rad1 {[%emt 0:03:29]} cxd4 {[%emt 0:06:08]} 17. cxd4 {[%emt 0:02:15]} Qc7 {[%emt 0:04:00]} 18. Rd2 {[%emt 0:07:02]} Rce8 {[%emt 0:31:04]} 19. e4 {[%emt 0:03:12]} dxe4 {[%emt 0:04:06]} 20. fxe4 Qf4 21. e5 {[%emt 0:07:06]} Ng4 {[%emt 0:05:34]} 22. Rde2 {[%emt 0:05:26]} Rc8 {[%emt 0:04:32]} 23. h3 {[%emt 0:06:07]} Nh6 {[%emt 0:02:34]} 24. Ne4 {[%emt 0:01:53]} Qh4 {[%emt 0:00:20]} 25. Nd6 {[%emt 0:02:51]} Rf8 {[%emt 0:00:40]} 26. d5 {[%emt 0:01:25]} Nc5 27. Qd4 {[%emt 0:00:03]} Qxd4+ {[%emt 0:00:51]} 28. Bxd4 Re7 {[%emt 0:00:35]} 29. g4 {[%emt 0:06:48]} Nd3 {[%emt 0:00:39]} 30. g5 {[%emt 0:04:57]} Nxe1 {[%emt 0:00:31]} 31. Rxe1 {[%emt 0:00:05]} f6 {[%emt 0:00:27]} 32. gxh6 {[%emt 0:01:17]} fxe5 {[%emt 0:00:00]} 33. Bxe5 {[%emt 0:03:26]} Rf6 {[%emt 0:01:27]} 34. Nc8 {[%emt 0:01:37]} Rg6+ {[%emt 0:00:21]} 35. Kh2 {[%emt 0:00:45]} Re8 {[%emt 0:00:52]} 36. Nxa7 Rxh6 37. Nc6 {[%emt 0:01:26]} Rd6 {[%emt 0:00:59]} 38. Rd1 {[%emt 0:01:18]} Rd7 {[%emt 0:00:21]} 39. Rd2 {[%emt 0:01:13]} Rc8 {[%emt 0:00:00]} 40. Nb4 Re8 41. Nc6 {[%emt 0:04:25]} Rc8 {[%emt 0:03:31]} 42. Bf4 {[%emt 0:00:23]} h6 {[%emt 0:02:03]} 43. Ne5 {[%emt 0:01:58]} Rd6 {[%emt 0:02:27]} 44. Ng4 {[%emt 0:01:24]} Rdd8 {[%emt 0:01:33]} 45. d6 {[%emt 0:01:45]} g5 {[%emt 0:01:04]} 46. Nxh6+ {[%emt 0:00:14]} Kh7 {[%emt 0:00:35]} 47. Bxg5 {[%emt 0:00:06]} Rd7 48. Ng4 1-0